Cogmind - Beta 14 @@@ ROGUE MODE // 2024.08.26 @ 18:45:38 Player: szymekc Result: Destroyed by Cetus Guard with Advanced Variable Charge Gun Performance ------------- Evolutions (4) 2000 Regions Visited (14) 2800 Robots Destroyed (221) 1105 Value Destroyed (7394) 7394 Prototype IDs (43) 860 Alien Tech Used (0) 0 Bonus (4166) 4166 TOTAL SCORE: 18325 Bonus ------- High Alert Combat Kills 1820 Follower Combat Kills 1917 Entered Garrisons 200 Met Imprinter 300 Was Imprinted 300 Acquired ECA 300 Friendly Fire -671 Cogmind --------- Core Integrity 0/850 Matter 264/300 Energy 70/100 System Corruption 1% Temperature Cool (27) Movement Core (200) Ox3 Location -6/Cetus Parts ------- > --- POWER (2) -------- (None) > --- PROPULSION (4) --- (None) > --- UTILITY (7) ------ (None) > --- WEAPON (2) ------- Antimatter Cannon Phasing Sabre > --- INVENTORY (5) ---- Zionite Biocell (600) Experimental Targeting Computer Multitool Peak State ------------ > --- POWER ------------ Light Angular Momentum Engine Zionite Light DM Reactor > --- PROPULSION ------- Titanium Leg VSS Leg Arachnoskeleton Myomer Leg > --- UTILITY ---------- Experimental Heat Sink Large Storage Unit Seismic Detector Core Analyzer Improved Reaction Control System Zionite Light Carapace Improved Hardlight Generator > --- WEAPON ----------- Heavy Beamcaster Plasma Cannon > --- INVENTORY -------- Coolant Injector Zionite Biocell Advanced Terrain Scan Processor Experimental Targeting Computer Improved Utility Shielding Improved Light Armor Plating Improved Trap Extractor Z-Drone Bay Hacking Drone Bay Gauss Cannon Improved Proton Missile Launcher Improved Grenade Launcher Multitool Phasing Sabre [Rating: 92] Favorites ----------- Power Improved Deuterium Engine Engine Improved Deuterium Engine Power Core Light Nuclear Core Reactor Zionite Light DM Reactor Propulsion Light Treads Treads Light Treads Leg Arachnoskeleton Flight Unit Improved Flight Unit Utility Seismic Detector Device Seismic Detector Storage Huge Storage Unit Processor Core Analyzer Hackware Hacking Suite Protection Improved Medium Armor Plating Weapon Advanced Beam Rifle Energy Gun Advanced Beam Rifle Energy Cannon Subdweller Beam Cannon Ballistic Gun Heavy Assault Rifle Ballistic Cannon Battle Cannon Launcher Improved Proton Missile Launcher Special Weapon Mining Laser Impact Weapon Great Maul Slashing Weapon Ripper Build | -11 -10 -10 -8 -8 -8 -8 -7 -7 -7 -7 -6 -6 -6 -6 ------- Run | Yrd Mat Sub Mat Gar Mat Sto Fac Low Low Zio Pro Fac Ext Cet Slots Evolved 8 | . . . 4 . . . 2 . . . . 2 . . Power 1 | . . . . . . . 1 . . . . . . . Propulsion 2 | . . . 1 . . . . . . . . 1 . . Utility 5 | . . . 3 . . . 1 . . . . 1 . . Weapon . | . . . . . . . . . . . . . . . Parts Attached 276 | 2 10 33 33 18 22 21 31 7 5 2 8 7 72 5 Power 28 | . 1 1 1 1 2 2 5 1 . . . 3 11 . Engine 20 | . 1 1 1 1 2 2 4 . . . . 3 5 . Core 5 | . . . . . . . 1 1 . . . . 3 . Reactor 3 | . . . . . . . . . . . . . 3 . Propulsion 48 | 2 . 2 9 1 4 7 5 1 . . . 2 14 1 Treads 25 | 2 . 2 8 1 4 6 2 . . . . . . . Leg 21 | . . . . . . . 3 1 . . . 2 14 1 Wheel . | . . . . . . . . . . . . . . . Hover . | . . . . . . . . . . . . . . . Flight 2 | . . . 1 . . 1 . . . . . . . . Utility 95 | . 6 17 8 6 7 4 13 2 3 . 4 2 23 . Device 43 | . 3 8 4 1 1 1 8 1 3 . 4 2 7 . Storage 5 | . 1 1 . . . . 1 . . . . . 2 . Processor 1 | . . . . . . . . 1 . . . . . . Hackware 1 | . . . . . . 1 . . . . . . . . Protection 45 | . 2 8 4 5 6 2 4 . . . . . 14 . Artifact . | . . . . . . . . . . . . . . . Weapon 105 | . 3 13 15 10 9 8 8 3 2 2 4 . 24 4 Energy Gun 23 | . . . 4 4 3 2 4 1 . . 1 . 4 . Energy Cannon 11 | . . 1 . . . . . . . . 2 . 7 1 Ballistic Gun 21 | . 3 4 4 2 4 3 . . . . . . 1 . Ballistic Cannon 12 | . . 4 . . . 2 1 1 1 . . . 2 1 Launcher 20 | . . . 3 4 2 1 . 1 1 . 1 . 6 1 Special Weapon 4 | . . 3 . . . . . . . . . . 1 . Impact Weapon 1 | . . . . . . . . . . . . . 1 . Slashing Weapon 13 | . . 1 4 . . . 3 . . 2 . . 2 1 Piercing Weapon . | . . . . . . . . . . . . . . . Special Melee Weapon . | . . . . . . . . . . . . . . . Unidentified Prototypes 18 | . 1 . 5 . 1 4 1 . . . . 1 5 . Parts Lost 39 | . . 3 1 4 . . 4 2 . . . 1 13 11 Power 6 | . . 1 . 1 . . 1 . . . . . 1 2 Propulsion 12 | . . 1 . 1 . . 2 . . . . . 3 5 Utility 16 | . . 1 . 2 . . . 2 . . . 1 8 2 Weapon 5 | . . . 1 . . . 1 . . . . . 1 2 Highest Loss Streak 11 | . . 1 1 4 . . 4 2 . . . 1 7 11 To Critical Strikes 1 | . . . . . . . . . . . . . . 1 Average Slot Usage (%) 95 | . 97 100 99 99 99 99 93 83 86 86 86 87 89 47 Engine 10 | . 14 14 9 9 9 9 13 8 6 6 6 9 7 2 Core 1 | . . . . . . . . 3 6 6 6 1 . 3 Treads 18 | . 28 28 26 26 27 26 17 . . . . . . . Leg 6 | . . . . . . . 3 18 20 20 20 23 23 14 Device 14 | . 11 8 18 10 9 7 19 22 20 20 20 22 22 4 Storage 9 | . 14 14 9 9 9 9 6 6 6 6 6 5 5 3 Processor 1 | . . . . . . . . 2 6 6 6 5 5 6 Protection 10 | . . 5 18 25 26 27 16 6 6 6 6 5 6 . Energy Gun 4 | . 7 . 8 11 8 3 3 7 6 2 6 5 5 . Energy Cannon 4 | . . 10 . . . . . . . . 5 5 3 1 Ballistic Gun 5 | . 20 6 7 5 8 8 5 . . . . . . 1 Ballistic Cannon 4 | . . 10 . . . 5 2 4 5 6 . . . 1 Peak Build Rating 92 | 6 13 18 34 37 37 38 56 65 65 65 66 79 92 49 Average Rating 36 | 6 9 15 27 34 34 35 44 60 62 63 65 75 78 35 On Entrance 41 | 6 6 13 16 34 35 37 35 56 65 62 65 65 79 49 Naked Turns . | . . . . . . . . . . . . . . . Heaviest Build 125 | 11 35 106 109 112 118 117 125 55 55 57 60 70 71 55 Greatest Support 87 | 40 40 40 62 62 62 65 79 62 62 62 62 82 87 65 Greatest Overweight (x) 2 | . . 2 1 1 1 2 1 . . . . . 1 1 Average Overweight (x) . | . . 1 1 1 1 1 . . . . . . . . Largest Inventory Capacity 25 | 8 15 25 25 25 25 25 25 15 15 15 15 15 15 15 Average Capacity 20 | 8 13 24 25 25 25 25 23 15 15 15 15 15 14 12 Most Carried 25 | 7 15 25 25 25 25 25 25 15 15 15 15 15 15 15 Average Carried 19 | 6 12 22 23 24 24 24 22 14 14 14 14 14 14 12 Final Capacity 25 | 8 15 25 25 25 25 25 15 15 15 15 15 15 15 5 Final Carried 25 | 7 15 21 25 25 25 25 15 15 15 15 15 15 15 3 Class Distribution -------------------- 75% | Mutant 15% | Scavenger-Mutant 8% | Commander-Mutant Dominant Class ---------------- Mutant | -10/Materials Mutant | -10/Subcaves Mutant | -8/Materials Scavenger-Mutant | -8/Garrison Scavenger-Mutant | -8/Materials Mutant | -8/Storage Mutant | -7/Factory Mutant | -7/Lower Caves Mutant | -7/Lower Caves Mutant | -7/Zion Mutant | -6/Proximity Caves Mutant | -6/Factory Commander-Mutant | -6/Extension Scavenger-Mutant | -6/Cetus Resources | -11 -10 -10 -8 -8 -8 -8 -7 -7 -7 -7 -6 -6 -6 -6 ----------- Run | Yrd Mat Sub Mat Gar Mat Sto Fac Low Low Zio Pro Fac Ext Cet Matter Collected 4864 | 271 188 380 675 345 496 511 537 192 95 20 93 60 1001 . Remotely 195 | . . . . . 195 . . . . . . . . . Salvage Created 8488 | 330 355 480 856 428 651 761 799 270 107 . 542 156 2753 . Parts 414 | 32 28 24 42 29 38 44 25 13 4 . 13 8 114 . Haulers Intercepted 7 | . 1 . 2 . 2 1 1 . . . . . . . Recyclers Shooed 2 | . . . 2 . . . . . . . . . . . Parts Field Recycled . | . . . . . . . . . . . . . . . Retrieved Matter . | . . . . . . . . . . . . . . . Parts Self-Destructed 42 | . . 7 . . . . . 12 9 1 13 . . . Prevented 1 | . . . . . . . . . . . 1 . . . Kills | -11 -10 -10 -8 -8 -8 -8 -7 -7 -7 -7 -6 -6 -6 -6 ------- Run | Yrd Mat Sub Mat Gar Mat Sto Fac Low Low Zio Pro Fac Ext Cet Combat Hostiles Destroyed 164 | . 5 10 24 19 14 18 7 9 4 . 5 3 46 . Melee 1 | . . . 1 . . . . . . . . . . . Guns 66 | . 5 3 14 6 8 9 6 4 1 . . 1 9 . Cannons 33 | . . 6 . . . 5 . 2 . . 3 1 16 . AOE 60 | . . . 9 13 6 4 . 3 3 . 2 . 20 . Classes Destroyed 21 | 3 4 2 3 1 2 . 1 1 . . 1 . 3 . Worker 8 | 4 . . . . 1 2 . . . . . . 1 . Builder 11 | . 1 . . . 1 1 1 . . . . . 7 . Tunneler 10 | 9 . . . . . . . . . . . . 1 . Hauler 7 | . 1 . 2 . 2 1 1 . . . . . . . Recycler 10 | 1 . . 1 . . . 5 . . . . . 3 . Minesweeper 1 | . . . . . . . . . . . 1 . . . Mechanic 1 | . . . . . . . . . . . . . 1 . Operator 2 | . . . 1 . . . . . . . . . 1 . Watcher 5 | . 3 . . . . . . . . . . 1 1 . Swarmer 48 | . . . 11 7 2 4 . 5 3 . 2 2 12 . Grunt 63 | . 5 . 9 9 5 11 . 1 . . 2 . 21 . Brawler 4 | . . . . . 2 . . . . . . . 2 . Duelist 5 | . . . . . . . . 2 . . . . 3 . Protector 1 | . . . . . 1 . . . . . . . . . Sentry 26 | . . . 4 2 4 3 4 1 1 . 1 1 5 . Demolisher 1 | . . . . . . . . . . . . . 1 . Specialist 2 | . . . . . . . . . . . . . 2 . Hunter 2 | . . . . 1 . . 1 . . . . . . . Programmer 2 | . . . . . . . 2 . . . . . . . Artisan 2 | . . 2 . . . . . . . . . . . . Subdweller 10 | . . 10 . . . . . . . . . . . . Savage 2 | . . . . . 1 . . . . . . . 1 . Best Kill Streak 28 | 3 3 2 6 10 7 7 4 6 3 . 2 2 28 . Combat Bots Only 19 | . 2 2 4 10 5 6 3 4 3 . 2 2 19 . Max Kills in Single Turn 5 | 1 1 1 5 3 4 3 2 2 3 . 2 1 5 . Gunslinging . | . . . . . . . . . . . . . . . Exploded 4 | . . . 4 3 2 3 . 2 3 . 2 . 4 . Melee 1 | . . . 1 . . . . . . . . . . . Uniques/NPCs Destroyed . | . . . . . . . . . . . . . . . Combat | -11 -10 -10 -8 -8 -8 -8 -7 -7 -7 -7 -6 -6 -6 -6 -------- Run | Yrd Mat Sub Mat Gar Mat Sto Fac Low Low Zio Pro Fac Ext Cet Hostile Shots Fired 1145 | . 30 59 99 80 59 62 188 40 22 . 14 23 406 63 Missed 398 | . 10 14 32 24 16 17 61 19 10 . 7 9 162 17 Damage Taken 10448 | . 232 993 866 959 675 564 1318 457 116 . 117 222 2670 1259 Core 1357 | . 33 85 91 61 19 62 104 6 30 . . 18 187 661 Absorbed by Shields 955 | . . . . 27 . . . . . . . 30 898 . Ignored by Resistances 126 | . . . . . . 96 30 . . . . . . . Regen/Repaired (Parts) 144 | . . . 115 . . . . . . 29 . . . . Core Remaining (%) 72 | 100 . 52 . . . 57 . . . . 80 . . . Volleys Fired 568 | 51 34 70 66 33 30 53 42 22 4 . 28 14 114 7 Largest 2 | 2 2 2 2 2 2 2 2 2 2 . 2 2 2 1 Hottest 161 | 70 70 100 84 122 86 86 122 122 109 . 161 161 161 75 Shots Fired 1003 | 99 68 89 128 51 52 97 84 36 7 . 55 28 202 7 Gun 708 | 99 68 35 125 38 47 65 79 18 3 . 27 14 90 . Cannon 224 | . . 34 . . . 30 5 16 3 . 27 14 90 5 Launcher 51 | . . . 3 13 5 2 . 2 1 . 1 . 22 2 Special 20 | . . 20 . . . . . . . . . . . . Kinetic 433 | 51 53 49 82 15 28 79 32 16 3 . . . 23 2 Thermal 536 | 48 15 40 46 36 24 16 52 18 3 . 54 28 156 . Explosive 12 | . . . . . . 2 . 2 1 . 1 . 6 . Electromagnetic 22 | . . . . . . . . . . . . . 17 5 Robot Hit Streak 22 | 15 7 17 22 8 17 9 16 12 4 . 12 8 11 1 Robot Miss Streak 7 | 3 3 2 3 3 2 3 2 3 2 . 1 4 7 3 Penetration Max 1 | . . . . . . . . . . . . . 1 . Secondary Targets 3 | . . . 1 1 . . . 1 . . . . . . Max Gunslinging Chain 1 | . . . 1 1 . . . 1 . . . . . . Shots Hit Robots 649 | 70 43 50 90 27 38 63 65 24 4 . 38 14 121 2 Core Hits 399 | 21 23 12 42 33 31 35 24 15 5 . 19 5 128 6 Critical Kills 5 | . . 2 . . . . . . . . . 1 2 . Critical Parts Destroyed 3 | 2 . . 1 . . . . . . . . . . . Critical Strikes 39 | 7 1 3 4 2 1 1 3 2 . . 1 3 11 . Burn 22 | 5 1 . 3 2 1 . 2 . . . 1 2 5 . Meltdown 5 | . . 2 . . . . . . . . . 1 2 . Destroy 3 | 2 . . 1 . . . . . . . . . . . Blast 9 | . . 1 . . . 1 1 2 . . . . 4 . Melee Attacks 48 | . . 4 4 . . . 5 . . 1 . . 33 1 Impact 33 | . . . . . . . . . . . . . 33 . Slashing 15 | . . 4 4 . . . 5 . . 1 . . . 1 Piercing . | . . . . . . . . . . . . . . . Sneak Attacks 2 | . . 1 . . . . 1 . . . . . . . Combat Hostiles . | . . . . . . . . . . . . . . . Follow-up Attacks . | . . . . . . . . . . . . . . . Damage Inflicted 20792 | 715 451 1173 2361 1746 1603 1674 1345 796 239 . 1163 340 6916 270 Guns 8538 | 715 421 476 1576 449 685 817 1199 260 40 . 439 163 1298 . Cannons 4088 | . . 590 . . . 497 50 304 31 . 557 177 1808 74 Explosions 7624 | . . . 698 1297 913 335 . 232 168 . 167 . 3658 156 Melee 314 | . . 107 76 . . . 91 . . . . . . 40 Ramming 228 | . 30 . 11 . 5 25 5 . . . . . 152 . Kinetic 7688 | 334 333 551 1654 1326 1105 1054 419 304 31 . . . 503 74 Thermal 7926 | 381 88 515 620 420 354 260 830 260 40 . 996 340 2822 . Explosive 2613 | . . . . . 139 335 . 232 168 . 167 . 1572 . Electromagnetic 2023 | . . . . . . . . . . . . . 1867 156 Impact . | . . . . . . . . . . . . . . . Slashing 314 | . . 107 76 . . . 91 . . . . . . 40 Piercing . | . . . . . . . . . . . . . . . Highest Corruption 3 | . . . . . 3 3 2 2 2 . . . 1 1 Average Corruption 2 | . . . . . 3 3 1 2 1 . . . 1 1 Corruption Purged 2 | . . . . . . . . . 2 . . . . . Corruption Blocked . | . . . . . . . . . . . . . . . Effects 69 | . . . . . 9 31 4 11 2 . . . 11 1 Message Errors 19 | . . . . . 2 11 . 1 . . . . 5 . Matter Fused 15 | . . . . . 3 5 1 2 . . . . 3 1 Heat Flow Errors 11 | . . . . . 1 6 1 1 1 . . . 1 . Energy Discharges 5 | . . . . . . 1 . 3 . . . . 1 . Parts Rejected 1 | . . . . . . . . 1 . . . . . . Data Loss (minor) 6 | . . . . . 2 2 1 1 . . . . . . Data Loss (major) 6 | . . . . . . 2 1 2 1 . . . . . Misfires 1 | . . . . . . 1 . . . . . . . . Alerts 2 | . . . . . . 2 . . . . . . . . Weapon Failures 3 | . . . . . 1 1 . . . . . . 1 . Overload Shots . | . . . . . . . . . . . . . . . Overflow Damage 398 | . . 49 106 17 51 10 . . 1 . 78 . 86 . Projectiles 82 | . . . . . . 9 . . . . 68 . 5 . Explosions 241 | . . . 106 17 51 1 . . 1 . 10 . 55 . Melee 75 | . . 49 . . . . . . . . . . 26 . Knockbacks 9 | . . 2 . . . 4 1 1 . . . . 1 . Impact 2 | . . . . . . 1 1 . . . . . . . Kinetic 7 | . . 2 . . . 3 . 1 . . . . 1 . Secondary . | . . . . . . . . . . . . . . . Self-Inflicted Damage 304 | . . . 36 152 59 . . 21 . . . . 36 . Shots 13 | . . . 2 4 3 . . 2 . . . . 2 . Rammed 10 | . 3 . 3 . . 3 1 . . . . . . . Targets Rammed 20 | . 4 . 3 . 1 3 1 . . . . . 8 . Kicked 8 | . . . . . . . . . . . . . 8 . Crushed 2 | . 1 . . . 1 . . . . . . . . . Highest Temperature 433 | 170 108 28 207 210 193 433 385 284 224 . 157 91 331 48 Average Temperature 76 | 44 38 8 60 70 62 95 96 130 78 . 46 37 96 27 Received Heat Transfer 3074 | . 138 78 333 405 333 333 240 72 27 . 18 21 950 126 Effects 5 | . . . . . . 5 . . . . . . . . Shutdowns 1 | . . . . . . 1 . . . . . . . . Energy Bleed 1 | . . . . . . 1 . . . . . . . . Interference 3 | . . . . . . 3 . . . . . . . . Siege Activations . | . . . . . . . . . . . . . . . Robots Corrupted 1 | . . . . . . . . . . . . . 1 . Combat Hostiles . | . . . . . . . . . . . . . . . Parts Fried 12 | . . . . . . . . . . . . . 12 . Impact Corruptions 2 | . . . . . . . . . . . . . 2 . Robots Melted 6 | . . 2 . . . . 1 . . . . 1 2 . Combat Hostiles 4 | . . 1 . . . . 1 . . . . 1 1 . Parts Melted 34 | 2 . 3 1 2 . 1 3 . . . 2 5 15 . Heat Transferred 16103 | 1480 333 666 1369 925 740 481 1628 481 74 . 1877 757 5292 . Parts Sabotaged 6 | . . . . . . . . . . . . . 6 . Parts Stolen . | . . . . . . . . . . . . . . . Parts Stripped . | . . . . . . . . . . . . . . . Power Chain Reactions 3 | . . . . . . . . . . . . . 3 . Alert | -11 -10 -10 -8 -8 -8 -8 -7 -7 -7 -7 -6 -6 -6 -6 ------- Run | Yrd Mat Sub Mat Gar Mat Sto Fac Low Low Zio Pro Fac Ext Cet Peak Influence 1789 | 55 200 . 460 1019 1077 550 171 . . . . 407 1789 1001 Initial 1001 | . . . . 178 496 391 86 . . . . 29 95 1001 Average 417 | 13 63 . 245 673 751 177 83 . . . . 207 996 963 Maximum Alert Level 5 | . 1 . 2 3 3 2 . . . . . 2 5 3 Low Security (%) 46 | 100 99 . 23 3 . 77 100 . . . . 42 2 . Level 1 15 | . . . 68 13 . 7 . . . . . 54 6 . Level 2 16 | . . . 7 37 49 14 . . . . . 3 27 . Level 3 11 | . . . . 45 50 . . . . . . . 10 100 Level 4 9 | . . . . . . . . . . . . . 48 . Level 5 . | . . . . . . . . . . . . . 3 . High Security . | . . . . . . . . . . . . . . . Max Security . | . . . . . . . . . . . . . . . Squads Dispatched 22 | . 2 . 1 . 3 4 2 . . . . . 10 . Investigation 5 | . 2 . . . . 1 . . . . . . 2 . Extermination 2 | . . . . . . . 2 . . . . . . . Reinforcement 6 | . . . 1 . . 3 . . . . . . 2 . Assault 8 | . . . . . 2 . . . . . . . 6 . Garrison 1 | . . . . . 1 . . . . . . . . . Intercept . | . . . . . . . . . . . . . . . Searches Triggered . | . . . . . . . . . . . . . . . Construction Impeded 3 | . . . . . . 1 . . . . . . 2 . Haulers Reinforced . | . . . . . . . . . . . . . . . Active Scanning Responses . | . . . . . . . . . . . . . . . Cargo Convoy Interrupts . | . . . . . . . . . . . . . . . Stealth | -11 -10 -10 -8 -8 -8 -8 -7 -7 -7 -7 -6 -6 -6 -6 --------- Run | Yrd Mat Sub Mat Gar Mat Sto Fac Low Low Zio Pro Fac Ext Cet Distress Signals 16 | . 2 . 7 . 1 2 1 . . . . . 2 1 Communications Jammed . | . . . . . . . . . . . . . . . Distress Signals . | . . . . . . . . . . . . . . . Times Spotted 268 | . 10 12 37 22 21 23 11 13 7 . 7 12 88 5 Peak Tracking Total 11 | . 3 2 6 8 5 4 3 6 4 . 3 5 11 5 Tactical Retreats 14 | . 2 . 2 1 . 1 . 3 . . . 1 4 . Traps | -11 -10 -10 -8 -8 -8 -8 -7 -7 -7 -7 -6 -6 -6 -6 ------- Run | Yrd Mat Sub Mat Gar Mat Sto Fac Low Low Zio Pro Fac Ext Cet Traps Triggered 9 | . 1 1 . 5 . 2 . . . . . . . . Indirectly . | . . . . . . . . . . . . . . . Trap Hack Attempts . | . . . . . . . . . . . . . . . Triggered . | . . . . . . . . . . . . . . . Disarmed . | . . . . . . . . . . . . . . . Reprogrammed 4 | . . . . . . . 4 . . . . . . . Reused . | . . . . . . . . . . . . . . . Traps Extracted . | . . . . . . . . . . . . . . . Installed . | . . . . . . . . . . . . . . . Triggered 2 | . . . . . . . . . . . 2 . . . Most Traps Carried 5 | . . . . . . . . . . . 5 5 5 5 Machines | -11 -10 -10 -8 -8 -8 -8 -7 -7 -7 -7 -6 -6 -6 -6 ---------- Run | Yrd Mat Sub Mat Gar Mat Sto Fac Low Low Zio Pro Fac Ext Cet Machines Disabled 24 | . . 1 5 3 5 5 . . . . . 1 4 . Max in Single Turn 2 | . . 1 1 2 1 1 . . . . . 1 1 . Garrison Access 1 | . . . . . 1 . . . . . . . . . Garrison Relay 1 | . . . . 1 . . . . . . . . . . Machines Repaired . | . . . . . . . . . . . . . . . Machines Dismantled . | . . . . . . . . . . . . . . . Machines Sabotaged . | . . . . . . . . . . . . . . . Overloaded Fab Kills . | . . . . . . . . . . . . . . . Hacking | -11 -10 -10 -8 -8 -8 -8 -7 -7 -7 -7 -6 -6 -6 -6 --------- Run | Yrd Mat Sub Mat Gar Mat Sto Fac Low Low Zio Pro Fac Ext Cet Machines Accessed 45 | . 7 4 8 5 3 11 2 . 1 . . 1 3 . Terminals 33 | . 5 . 6 5 3 9 1 . . . . 1 3 . Fabricators . | . . . . . . . . . . . . . . . Repair Stations 2 | . . . 1 . . 1 . . . . . . . . Recycling Units 2 | . 2 . . . . . . . . . . . . . Scanalyzers . | . . . . . . . . . . . . . . . Garrison Access 3 | . . . 1 . . 1 1 . . . . . . . Total Hacks 116 | . 24 9 27 7 7 29 5 . 1 . . 1 6 . Successful 64 | . 14 9 17 3 5 12 2 . 1 . . 1 . . Failed 52 | . 10 . 10 4 2 17 3 . . . . . 6 . Catastrophic 10 | . . . 4 3 . 1 . . . . . . 2 . Database Lockouts . | . . . . . . . . . . . . . . . Manual 71 | . 13 . 14 2 6 15 1 . . . . 17 3 . Terminals 89 | . 17 . 23 7 7 25 3 . . . . 1 6 . Fabricators . | . . . . . . . . . . . . . . . Repair Stations 3 | . . . 2 . . 1 . . . . . . . . Recycling Units 7 | . 7 . . . . . . . . . . . . . Scanalyzers . | . . . . . . . . . . . . . . . Garrison Access 7 | . . . 2 . . 3 2 . . . . . . . Terminal Hacks 32 | . 3 9 5 3 1 7 2 . 1 . . 1 . . Record 6 | . . 6 . . . . . . . . . . . . Prototype ID Bank 2 | . . . 1 . . 1 . . . . . . . . Open Door 6 | . . 1 . 1 . 2 . . 1 . . 1 . . Emergency Access Points 1 | . 1 . . . . . . . . . . . . . Unreport Threat 4 | . . . 1 . . 3 . . . . . . . . Locate Traps 4 | . 1 . 1 . . 1 1 . . . . . . . Reprogram Traps 1 | . . . . . . . 1 . . . . . . . Registered Components 1 | . . . 1 . . . . . . . . . . . Registered Prototypes 1 | . 1 . . . . . . . . . . . . . Zone Layout 2 | . . . 1 . 1 . . . . . . . . . Garrison Registry 1 | . . . . 1 . . . . . . . . . . Patrol Navigation 1 | . . . . 1 . . . . . . . . . . Derelict Proto ID Bank 1 | . . 1 . . . . . . . . . . . . Release Object 1 | . . 1 . . . . . . . . . . . . Fabricator Hacks . | . . . . . . . . . . . . . . . Repair Station Hacks 2 | . . . 2 . . . . . . . . . . . Scan Component 1 | . . . 1 . . . . . . . . . . . Repair 1 | . . . 1 . . . . . . . . . . . Recycling Unit Hacks 2 | . 2 . . . . . . . . . . . . . Retrieve Components 2 | . 2 . . . . . . . . . . . . . Scanalyzer . | . . . . . . . . . . . . . . . Garrison Access Hacks 1 | . . . 1 . . . . . . . . . . . Unlock Access 1 | . . . 1 . . . . . . . . . . . Unauthorized Hacks 27 | . 9 . 9 . 4 5 . . . . . . . . Terminals 26 | . 8 . 9 . 4 5 . . . . . . . . Track 2 | . 1 . 1 . . . . . . . . . . . Assimilate 1 | . . . 1 . . . . . . . . . . . Botnet 3 | . 1 . 1 . 1 . . . . . . . . . Disrupt 1 | . 1 . . . . . . . . . . . . . Operators 1 | . . . 1 . . . . . . . . . . . Skim 18 | . 5 . 5 . 3 5 . . . . . . . . Fabricators . | . . . . . . . . . . . . . . . Repair Stations . | . . . . . . . . . . . . . . . Recycling Units 1 | . 1 . . . . . . . . . . . . . Tunnel 1 | . 1 . . . . . . . . . . . . . Scanalyzers . | . . . . . . . . . . . . . . . Garrison Access . | . . . . . . . . . . . . . . . Data Cores Recovered 2 | . . . . . 1 . . . . . . . 1 . Used . | . . . . . . . . . . . . . . . Hacking Detections 31 | . 5 . 7 3 3 8 2 . . . . . 3 . Full Trace Events 3 | . . . . . . 1 . . . . . . 2 . Feedback Events 1 | . . . . . . . . . . . . . 1 . Corruption 1 | . . . . . . . . . . . . . 1 . Feedback Blocked . | . . . . . . . . . . . . . . . Robot Schematics Acquired 3 | . . . . . . . . . . 3 . . . . Robots Built . | . . . . . . . . . . . . . . . Authchips . | . . . . . . . . . . . . . . . Time . | . . . . . . . . . . . . . . . Total Robot Build Rating . | . . . . . . . . . . . . . . . Part Schematics Acquired 27 | . . . . . . . . . . 15 . 12 . . Parts Built . | . . . . . . . . . . . . . . . Authchips . | . . . . . . . . . . . . . . . Time . | . . . . . . . . . . . . . . . Total Part Build Rating . | . . . . . . . . . . . . . . . Parts Repaired 1 | . . . 1 . . . . . . . . . . . Time 26 | . . . 26 . . . . . . . . . . . Parts Recycled . | . . . . . . . . . . . . . . . Recycled Matter . | . . . . . . . . . . . . . . . Retrieved Matter . | . . . . . . . . . . . . . . . Retrieved Components 9 | . 9 . . . . . . . . . . . . . Parts Scanalyzed . | . . . . . . . . . . . . . . . Part Schematics Acquired . | . . . . . . . . . . . . . . . Parts Damaged . | . . . . . . . . . . . . . . . Bothacking | -11 -10 -10 -8 -8 -8 -8 -7 -7 -7 -7 -6 -6 -6 -6 ------------ Run | Yrd Mat Sub Mat Gar Mat Sto Fac Low Low Zio Pro Fac Ext Cet Used RIF Installer . | . . . . . . . . . . . . . . . Robots Hacked . | . . . . . . . . . . . . . . . Non-combat . | . . . . . . . . . . . . . . . Combat . | . . . . . . . . . . . . . . . Robot Hacks Applied . | . . . . . . . . . . . . . . . Relay Couplers Released 5 | . . . . 3 2 . . . . . . . . . Machine Destruction 5 | . . . . 3 2 . . . . . . . . . Fabnet Peak Effective % . | . . . . . . . . . . . . . . . Robots Rewired 32 | . . . . 3 . . . 2 . . . . 27 . Allies Hacked . | . . . . . . . . . . . . . . . Hacks Repelled . | . . . . . . . . . . . . . . . Allies | -11 -10 -10 -8 -8 -8 -8 -7 -7 -7 -7 -6 -6 -6 -6 -------- Run | Yrd Mat Sub Mat Gar Mat Sto Fac Low Low Zio Pro Fac Ext Cet Total Allies 42 | . . . . 3 . . . 2 . 4 . 3 30 . Largest Group 15 | . . . . 3 3 . . 2 2 6 6 6 15 . Highest-Rated Group 578 | . . . . 90 90 . . 32 32 184 184 327 578 . Highest-Rated Ally 70 | . . . . 39 39 . . 16 16 42 42 70 70 . Zionite Dispatches 3 | . . . . . . . . . . . . 2 1 . Light 2 | . . . . . . . . . . . . 1 1 . Recon 1 | . . . . . . . . . . . . 1 . . Total Orders 2 | . . . . . . . . . . . . . 2 . EXPLORE 1 | . . . . . . . . . . . . . 1 . RETURN 1 | . . . . . . . . . . . . . 1 . Ally Attacks 391 | . . . . 10 27 . . 2 18 . 15 27 292 . Total Damage 6845 | . . . . 115 423 . . 33 151 . 223 525 5375 . Kills 67 | . . . . 3 6 . . 1 3 . 4 7 43 . Allies Corrupted . | . . . . . . . . . . . . . . . Allies Melted 2 | . . 1 . . . . . . . . . . 1 . Intel | -11 -10 -10 -8 -8 -8 -8 -7 -7 -7 -7 -6 -6 -6 -6 ------- Run | Yrd Mat Sub Mat Gar Mat Sto Fac Low Low Zio Pro Fac Ext Cet Robot Analysis Total . | . . . . . . . . . . . . . . . Derelict Logs Recovered 7 | . . 1 . . . . . 1 2 1 2 . . . Drone Launches 1 | . . . . . . . . . . . . . 1 . Drone Recoveries 1 | . . . . . . . . . . . . . 1 . Zionite Intel Received 2 | . . . . . . . . . . . . 2 . . Component Stockpiles 1 | . . . . . . . . . . . . 1 . . Prototype Schematics 1 | . . . . . . . . . . . . 1 . . Exploration | -11 -10 -10 -8 -8 -8 -8 -7 -7 -7 -7 -6 -6 -6 -6 ------------- Run | Yrd Mat Sub Mat Gar Mat Sto Fac Low Low Zio Pro Fac Ext Cet Turns Passed 19991 | 1069 1193 5739 1430 1296 823 1523 1037 630 732 1015 742 494 2216 52 Spaces Moved 8925 | 166 654 1514 362 486 288 345 466 602 686 994 661 411 1265 25 Core 34 | . . . . . . . . . . . . . 28 6 Treads 4100 | 166 654 1514 362 486 288 345 285 . . . . . . . Legs 4791 | . . . . . . . 181 602 686 994 661 411 1237 19 Wheels . | . . . . . . . . . . . . . . . Hover . | . . . . . . . . . . . . . . . Flight . | . . . . . . . . . . . . . . . Fastest Speed 50 | 160 160 160 235 235 235 235 90 90 90 90 90 100 50 100 Average Speed 166 | 160 160 315 239 235 235 239 181 90 90 90 90 100 105 120 Slowest Speed 320 | 160 160 320 240 235 235 320 240 90 90 90 90 100 190 190 Overloaded Moves . | . . . . . . . . . . . . . . . Propulsion Burnouts . | . . . . . . . . . . . . . . . Robots Hopped . | . . . . . . . . . . . . . . . Cave-ins Triggered . | . . . . . . . . . . . . . . . Exploration Rate (%) 57 | 6 80 91 44 72 36 67 14 75 94 90 78 9 95 16 Regions Visited 14 Branch Regions 8 Pre-discovered Areas 9 | . 2 3 . . . . . 1 . 2 1 . . . Known Exits Taken 9 | . 1 1 1 . . 1 1 1 1 . 1 1 . . Unknown Exits Taken 4 | 1 . . . . 1 . . . . 1 . . 1 . Scrap Searched 18 | . . 6 . . . . . 2 5 2 3 . . . Spaces Dug 143 | . . . 17 58 16 14 3 28 . . 7 . . . Terrain Destroyed 333 | . . 1 50 106 60 19 4 33 6 . 7 . 47 . Melee 5 | . . . 2 . . . 3 . . . . . . . Projectile 22 | . . 1 . . . 5 1 5 2 . . . 8 . AOE 306 | . . . 48 106 60 14 . 28 4 . 7 . 39 . Terrain Rammed . | . . . . . . . . . . . . . . . Walls Destroyed . | . . . . . . . . . . . . . . . Machines Disabled . | . . . . . . . . . . . . . . . Actions | -11 -10 -10 -8 -8 -8 -8 -7 -7 -7 -7 -6 -6 -6 -6 --------- Run | Yrd Mat Sub Mat Gar Mat Sto Fac Low Low Zio Pro Fac Ext Cet Total 12948 | 880 739 2339 789 589 394 960 573 652 794 1116 750 466 1867 40 Wait 2527 | 661 12 688 273 9 15 519 5 9 88 105 46 26 71 . Move 8910 | 165 653 1513 362 483 287 344 465 601 685 993 660 410 1264 25 Hop . | . . . . . . . . . . . . . . . Pick Up 126 | 1 16 19 22 3 13 5 5 1 4 4 2 4 27 . Fast Attach 70 | . . . 8 1 5 11 7 2 2 . 2 3 29 . Attach 45 | . 1 6 5 4 2 1 7 1 . . . 3 11 4 Detach 3 | . . . . 1 . . 1 . . . . . . 1 Swap 162 | 2 9 27 21 13 15 9 17 4 3 2 6 1 32 1 Drop 172 | . 10 12 25 3 26 15 18 1 7 5 4 5 40 1 Fire 568 | 51 34 70 66 33 30 53 42 22 4 . 28 14 114 7 Melee 48 | . . 4 4 . . . 5 . . 1 . . 33 1 Ram . | . . . . . . . . . . . . . . . Kick 8 | . . . . . . . . . . . . . 8 . Crush 12 | . 4 . 3 . 1 3 1 . . . . . . . Escape Stasis 9 | . . . . 9 . . . . . . . . . . Rewire 287 | . . . . 30 . . . 11 1 6 2 . 237 . Trap . | . . . . . . . . . . . . . . . Miscellaneous 1 | . . . . . . . . . . . . . 1 . Route ------- -11/Scrapyard -10/Materials (discovered 5 exits: *Mat x3 / [*Min] / *Sub) -10/Subcaves (discovered 3 exits: *Mat x2 / Rec) -8/Materials (discovered 2 exits: *Fac / Gar) -8/Garrison (discovered 3 exits: *Mat x3) -8/Materials -8/Storage (discovered 2 exits: *Fac / Rec) -7/Factory (discovered 2 exits: *Low x2) -7/Lower Caves -7/Lower Caves (discovered 2 exits: *Fac / *Zio) -7/Zion -6/Proximity Caves -6/Factory (discovered 2 exits: Low / *Ext) -6/Extension (discovered 3 exits: *Fac x2 / [*Cet]) -6/Cetus History --------- Turn | Location | Event 17 | -11/Scrapyard | Discovered new exit (range 3) 1070 | -11/Scrapyard | Entered Materials 1071 | -10/Materials | Build established: Mutant 1260 | -10/Materials | Discovered new exit (range 13) 1792 | -10/Materials | Discovered new exit (range 13) 1964 | -10/Materials | Identified exit to Subcaves 1964 | -10/Materials | Identified exit to Materials 2054 | -10/Materials | Learned Storage stockpile data 2100 | -10/Materials | Learned location of 2 exits from Subcaves 2124 | -10/Materials | Learned location of Subcaves (-10) 2148 | -10/Materials | Learned location of 2 exits from Subcaves 2182 | -10/Materials | Learned location of 1 exit from Recycling 2263 | -10/Materials | Entered Subcaves 2264 | -10/Subcaves | Identified exit to Materials 2265 | -10/Subcaves | Identified exit to Recycling 2272 | -10/Subcaves | Learned location of Zion (-7) 2272 | -10/Subcaves | Met a Zionite searching for "candidates" 2356 | -10/Subcaves | Shifting Twisted Machinery released Battle Cannon 2429 | -10/Subcaves | Shifting Twisted Machinery released Sub. Beam Cannon 2506 | -10/Subcaves | Learned Materials interactive machine intel 2530 | -10/Subcaves | Shifting Twisted Machinery released Mak. Power Source 2543 | -10/Subcaves | Shifting Twisted Machinery released Sub. Power Source 4030 | -10/Subcaves | Visited Clippyterm 4039 | -10/Subcaves | Learned location of Extension (-6) 4039 | -10/Subcaves | Learned location of Section 7 (-3) 4902 | -10/Subcaves | Visited 4L-MR0's lab 4937 | -10/Subcaves | Found Arachnoskeleton 5326 | -10/Subcaves | Shifting Twisted Machinery released Sub. Laser 5335 | -10/Subcaves | Shifting Twisted Machinery released Sub. Shrapnel Launcher 7219 | -10/Subcaves | Build established: Scavenger-Mutant 7232 | -10/Subcaves | A swath of the cavern ceiling suddenly collapsed 7441 | -10/Subcaves | Ambushed by angry Subdweller bent on revenge 8002 | -10/Subcaves | Entered Materials 8002 | -8/Materials | Evolved 4 slots: Propulsion x1, Utility x3 8003 | -8/Materials | Loaded intel: 19 interactive machine locations 8070 | -8/Materials | Repaired Lgt. Treads 8728 | -8/Materials | Build established: Mutant 8854 | -8/Materials | Discovered new exit (range 14) 8967 | -8/Materials | Learned Factory security intel 9038 | -8/Materials | Learned Factory trap positions 9101 | -8/Materials | Learned location of 1 exit from Storage 9152 | -8/Materials | Learned 2 Storage zone layouts 9191 | -8/Materials | Learned 4 Factory zone layouts 9219 | -8/Materials | Learned Storage stockpile data 9256 | -8/Materials | Learned Factory trap positions 9304 | -8/Materials | Learned Factory stockpile data 9361 | -8/Materials | Learned location of 2 exits from Factory 9432 | -8/Materials | Identified exit to Garrison 9432 | -8/Materials | Entered Garrison 9478 | -8/Garrison | Triggered checkpoint 9712 | -8/Garrison | Destroyed 10 combat bots 9718 | -8/Garrison | Lost 4 parts (1p1n2u) 9876 | -8/Garrison | Triggered checkpoint 10031 | -8/Garrison | Discovered new exit (range 8) 10139 | -8/Garrison | Discovered new exit (range 34) 10139 | -8/Garrison | Discovered new exit (range 84) 10139 | -8/Garrison | Discovered new exit (range 20) 10197 | -8/Garrison | Build established: Scavenger-Mutant 10241 | -8/Garrison | Attempted to access garrison exit controls, blocked by remote lockdown 10348 | -8/Garrison | Triggered checkpoint 10424 | -8/Garrison | Triggered checkpoint 10469 | -8/Garrison | Attempted to access garrison exit controls, blocked by remote lockdown 10602 | -8/Garrison | Triggered checkpoint 10728 | -8/Garrison | Entered Materials 10728 | -8/Materials | Accompanied by 3 allies 11127 | -8/Materials | Garrison activated, responded to threat 11462 | -8/Materials | Discovered new exit (range 8) 11468 | -8/Materials | Build established: Mutant 11528 | -8/Materials | First assault squad dispatched 11551 | -8/Materials | Entered Storage 11552 | -8/Storage | Identified exit to Factory 11577 | -8/Storage | Found Prototype Processor 12631 | -8/Storage | Learned location of 2 exits from Lower Caves 12678 | -8/Storage | Learned 4 Factory zone layouts 12748 | -8/Storage | Learned location of 1 exit from Extension 12770 | -8/Storage | Learned Recycling recycling unit intel 12780 | -8/Storage | Learned location of 1 exit from Recycling 12802 | -8/Storage | Learned location of 2 exits from Lower Caves 12879 | -8/Storage | Learned 4 Recycling zone layouts 13074 | -8/Storage | Entered Factory 13074 | -7/Factory | Evolved 2 slots: Power x1, Utility x1 13075 | -7/Factory | Identified exit to Lower Caves 13077 | -7/Factory | Loaded intel: 116 trap records 13896 | -7/Factory | Attached Arachnoskeleton, gained temporary slots: Propulsion x3 13915 | -7/Factory | Lost 4 parts (1p2n1w) 14111 | -7/Factory | Entered Lower Caves 14112 | -7/Lower Caves | Identified exit to Lower Caves 14122 | -7/Lower Caves | Met a Warlord Commander 14123 | -7/Lower Caves | Learned location of Warlord (-4) 14124 | -7/Lower Caves | Warlord Commander delivered Encrypted Comm Array 14252 | -7/Lower Caves | Attracted the attention of an 0b10 outpost 14495 | -7/Lower Caves | Learned location of 1 exit from Factory 14654 | -7/Lower Caves | Encountered a Warlord checkpoint 14741 | -7/Lower Caves | Entered another Lower Caves area 14741 | -7/Lower Caves | Accompanied by 2 allies 14742 | -7/Lower Caves | Identified exit to Factory 14742 | -7/Lower Caves | Identified exit to Zion 15258 | -7/Lower Caves | Attracted the attention of an 0b10 checkpoint 15473 | -7/Lower Caves | Entered Zion 15473 | -7/Zion | Accompanied by 2 allies 15653 | -7/Zion | Received a visual enhancement algorithm 15870 | -7/Zion | Given A8's code to call for help 16074 | -7/Zion | Met Imprinter 16089 | -7/Zion | Imprinted 16091 | -7/Zion | Declared Zion's savior 16367 | -7/Zion | Discovered new exit (range 15) 16373 | -7/Zion | Given the Hacking Drone Bay 16375 | -7/Zion | Found Prototype Device 16488 | -7/Zion | Entered Proximity Caves 16488 | -6/Proximity Caves | Accompanied by 6 allies 16893 | -6/Proximity Caves | Spotted B-75 Beast 17070 | -6/Proximity Caves | Attracted the attention of an 0b10 checkpoint 17230 | -6/Proximity Caves | Entered Factory 17230 | -6/Factory | Accompanied by 3 allies 17230 | -6/Factory | Evolved 2 slots: Propulsion x1, Utility x1 17231 | -6/Factory | Identified exit to Extension 17232 | -6/Factory | Identified exit to Lower Caves 17233 | -6/Factory | Loaded intel: 73 trap records 17434 | -6/Factory | Zion Light squad teleported in 17489 | -6/Factory | Zion Recon squad teleported in 17596 | -6/Factory | Retrieved Zion intel report: Prototype Schematics 17610 | -6/Factory | Retrieved Zion intel report: Component Stockpiles 17724 | -6/Factory | Entered Extension 17724 | -6/Extension | Accompanied by 6 allies 17725 | -6/Extension | Identified exit to Factory 18085 | -6/Extension | Lost 5 allies 18122 | -6/Extension | Zion Light squad teleported in 18218 | -6/Extension | Identified Hacking Drone Bay 18368 | -6/Extension | Build established: Commander-Mutant 18424 | -6/Extension | First assault squad dispatched 18593 | -6/Extension | Lost 3 allies 18617 | -6/Extension | Spotted B-75 Beast 18627 | -6/Extension | Allies destroyed B-75 Beast 18636 | -6/Extension | Spotted B-75 Beast 18646 | -6/Extension | Allies destroyed B-75 Beast 18674 | -6/Extension | Lost 3 parts (1n2u) 18814 | -6/Extension | Discovered new exit (range 15) 18815 | -6/Extension | Discovered exit to Factory (range 15) 18937 | -6/Extension | Lost 6 allies 19013 | -6/Extension | Terminal network hard line cut 19661 | -6/Extension | Lost 13 allies 19849 | -6/Extension | Disrupted transfer network 19898 | -6/Extension | Destroyed 19 combat bots 19901 | -6/Extension | Lost 7 parts (1p1n4u1w) 19926 | -6/Extension | Build established: Scavenger-Mutant 19940 | -6/Extension | Entered Cetus 19956 | -6/Cetus | Spotted Cetus Guard 19956 | -6/Cetus | Spotted Cetus Guard 19961 | -6/Cetus | Spotted Cetus Guard 19969 | -6/Cetus | Spotted Cetus Guard 19981 | -6/Cetus | Core integrity fell below 50% 19988 | -6/Cetus | Core integrity fell below 20% 19992 | -6/Cetus | Destroyed by Cetus Guard with Advanced Variable Charge Gun Last Messages --------------- 19969_ Imp. Grenade Launcher destroyed. 19969_ Penetrated by Slug. 19970_ System corrupted: Matter fused (-7). 19970_ Penetrated by Slug. 19970_ Carbon-fiber Leg destroyed. 19971_ Neutrino Core destroyed. 19971_ Penetrated by Slug. 19974_ Carbon-fiber Leg destroyed. 19976_ Flexi-carbon Leg destroyed. 19977_ Penetrated by Slug. 19979_ Dropped Lrg. Storage Unit. 19980_ Slug penetrates Wall. 19982_ Penetrated by Slug. 19987_ Critical hit (Destroy). 19987_ Coolant Injector destroyed. 19989_ Myomer Leg destroyed. 19989_ Penetrated by Slug. 19989_ Slug penetrates Wall. 19992_ Penetrated by Slug. 19992_ Core Analyzer destroyed. Map ----- +----------------------------------------------------+ | ?????????????????????????????????????????????????? | | ?????????????????????????????????????????????????? | | ?????????????????????????????????????????????????? | | ?????????????????????????????????????????????????? | | ?????????????????????????????????????????????????? | | ?????????????????????????????????????????????????? | | ?????????????????????????????????????????????????? | | ?????????????????????????????????????????????????? | | ?????????????????????????????????????????????????? | | ???????????????????? ??????????????????????????? | | ???????????????????# #?????????????????????????? | | ???????????????????# #?????????????????????????? | | ???????????????????# #?????????????????????????? | | ???????????????????# #?????????????????????????? | | ???????????????????# #?????????????????????????? | | ???????????????????# #?????????????????????????? | | ???????????????????# #?????????????????????????? | | ???????????????????# #?????????????????????????? | | ?????????????????### #?????????????????????????? | | ????????????????#? ; #?????????????????????????? | | ???????????????## ## #?????????????????????????? | | ???????????????# ; ##????????????????????????? | | ?????????????????# ; # ###?????????????????????? | | ???????????????????# ; # #?????????????????????? | | ###########""##"####! ;;;;## ##???????????????? | | !!![! @ Y% +??????????????? | | ]!! Y w +??????????????? | | = YY % +??????????????? | | ############################# ###??????????????? | | ??????????????????????????????###????????????????? | | ?????????????????????????????????????????????????? | | ?????????????????????????????????????????????????? | | ?????????????????????????????????????????????????? | | ?????????????????????????????????????????????????? | | ?????????????????????????????????????????????????? | | ?????????????????????????????????????????????????? | | ?????????????????????????????????????????????????? | | ?????????????????????????????????????????????????? | | ?????????????????????????????????????????????????? | | ?????????????????????????????????????????????????? | | ?????????????????????????????????????????????????? | | ?????????????????????????????????????????????????? | | ?????????????????????????????????????????????????? | | ?????????????????????????????????????????????????? | | ?????????????????????????????????????????????????? | | ?????????????????????????????????????????????????? | | ?????????????????????????????????????????????????? | | ?????????????????????????????????????????????????? | | ?????????????????????????????????????????????????? | | ?????????????????????????????????????????????????? | +----------------------------------------------------+ Best States ------------- Heat Dissipation 63 Coolant Potential 65 Energy Generation 40 Energy Capacity 965 Matter Stores 300 Matter Capacity 300 Sight Range 16 Terrain Scan Density 10 Armor Coverage 675 Resistance: TH 15 Evasion (%) 65 Core Analysis 6 Recoil Reduction 3 Offensive Hacking 10 Trap Extractor Capacity 6 Item Schematics ----------------- Component Analysis Suite | -7/Zion | Archive Power Amplifier | -7/Zion | Archive Imp. Titanium Leg | -7/Zion | Archive Hvy. Machine Gun | -7/Zion | Archive Adv. ECM Suite | -7/Zion | Archive EM Disruption Field | -7/Zion | Archive Arm. Huge Wheel | -7/Zion | Archive Lrn. Tractor Beam | -7/Zion | Archive Imp. Shock Absorption System | -7/Zion | Archive Hpw. Shock Rifle | -7/Zion | Archive Arm. Leg | -7/Zion | Archive Flak Gun | -7/Zion | Archive Gatling Laser | -7/Zion | Archive Lgt. Fission Core | -7/Zion | Archive Lrn. Phase Cannon | -7/Zion | Archive Gui. EMP Blaster | -6/Factory | Z-intel Scatter Rocket Array | -6/Factory | Z-intel Imp. Spread Laser | -6/Factory | Z-intel Cld. Plasma Cannon | -6/Factory | Z-intel Force Rifle | -6/Factory | Z-intel Enh. Nuclear Core | -6/Factory | Z-intel Imp. Cesium-ion Thruster | -6/Factory | Z-intel Antimatter Cannon | -6/Factory | Z-intel Cold Fusion Reactor | -6/Factory | Z-intel Cld. Particle Cannon | -6/Factory | Z-intel Imp. VTOL Module | -6/Factory | Z-intel Imp. Lightning Gun | -6/Factory | Z-intel Robot Schematics ------------------ A-02 Transporter | -7/Zion | Archive M-28 Smith | -7/Zion | Archive K-01 Serf | -7/Zion | Archive Fabricated ------------ Nothing Alien Tech Used ----------------- None Achievements -------------- None Challenges ------------ None Game ------ Seed BarrageReflectivePod Manual? 0 Play Time 02:02:12 Cumulative 371.7 hours Start 2024.08.25 @ 18:06:22 End 2024.08.26 @ 18:45:38 Sessions 5 Manual Loads 0 Difficulty Rogue Special Mode None Game No. 137 Rogue 135 Adventurer 2 Explorer 0 Win Type - Total 17 Types 7/0/8/1/0/0/0/1/0 Lore% 75 Gallery% 84 Achievement% 75 Wizard Run 0 Options --------- Layout 0 ASCII 0 Keyboard 0 Movement Numpad Keybinds 0 Fullscreen 2 Font 24/Smallcaps Map View 76x50 Zoom Use 0% Tactical HUD 1 Map Filters NONE Filters NONE Steam 1 RUN: d96662e7-5dd6-4f55-b9b8-39a5110fb2e6